bitfinex-derivatives/quotes_ETHF0:USTF0_20240920
["timestamp","ask_amount","ask_price","bid_price","bid_amount"]
[1726795361192,0.4118,2446.9,2446.5,0.8119]
[1726795361400,0.82038,2446.9,2446.7,0.4086]
[1726795364391,0.4118,2446.9,2446.7,0.4086]
[1726795365398,0.82037,2446.9,2446.7,0.4086]
[1726795366805,0.4118,2446.9,2446.7,0.4086]
[1726795367504,0.82037,2446.9,2446.7,0.4086]
[1726795368401,3.19,2446.8,2446.5,0.8119]
[1726795368610,3.5986,2446.8,2446.6,0.40861]
[1726795369001,3.19,2446.8,2446.7,0.40861]
[1726795371409,3.19,2446.8,2446.2,1.0217]
[1726795371609,6.3978,2446.8,2446.6,0.40861]
[1726795372199,6.80639,2446.8,2446.6,0.40861]
[1726795372506,6.3978,2446.8,2446.6,0.40861]
[1726795373100,6.3978,2446.8,2446.7,0.40861]
[1726795373409,6.3978,2446.8,2446.6,0.40861]
[1726795373800,3.2078,2446.8,2446.7,0.40861]
[1726795375200,4.01037,2446.9,2446.6,0.40861]
[1726795375400,7.21817,2446.9,2446.6,0.40861]
[1726795375610,0.40859,2446.8,2446.6,0.40861]
[1726795376115,7.21818,2446.9,2446.6,0.40861]
[1726795376500,7.21818,2446.9,2446.5,0.40863]
[1726795376501,3.19,2446.8,2446.5,0.40863]
[1726795376707,0.40865,2446.5,2446.2,0.8074]
[1726795377008,1.238,2446.4,2446.3,0.40866]
[1726795378208,1.238,2446.4,2446.2,1.25498]
[1726795379707,1.238,2446.4,2446.3,0.40867]
[1726795380298,1.238,2446.4,2446.2,1.25498]
[1726795380508,1.238,2446.4,2446.3,0.40867]
[1726795381912,1.238,2446.4,2446.2,1.25498]
[1726795382111,4.83667,2446.4,2446.1,1.4742567]
[1726795382313,3.19,2446.2,2446.0,1.8689667]
[1726795382508,3.19,2446.2,2445.8,1.0655567]
[1726795382810,0.40874,2445.9,2445.7,0.40877]
[1726795383014,0.40877,2445.7,2445.6,1.0655567]
[1726795383214,0.40877,2445.7,2445.2,1.0655567]
[1726795383215,0.40881,2445.5,2445.2,1.0655567]
[1726795383416,3.19,2445.3,2445.1,0.3947]
[1726795383910,3.6134,2445.3,2445.1,0.3947]
[1726795384216,0.40886,2445.2,2444.8,1.8683767]
[1726795384406,3.19,2445.0,2444.8,0.80282]
[1726795384806,3.19,2445.0,2444.9,0.40891]
[1726795385119,3.19,2445.0,2444.8,0.80281]
[1726795385308,3.19,2445.0,2444.8,0.3939]
[1726795385817,0.3854,2444.9,2444.4,1.0655567]
[1726795386007,3.19,2444.8,2444.5,0.40897]
[1726795386611,3.19,2444.8,2444.6,0.40896]
[1726795388418,3.19,2444.8,2444.4,0.3914]
[1726795388617,3.19,2445.0,2444.4,0.3914]
[1726795388914,3.19,2445.0,2444.8,0.40891]
[1726795389517,3.19,2445.0,2444.9,0.40891]
[1726795389720,3.19,2445.0,2444.8,0.40892]
[1726795390316,3.19,2445.0,2444.9,0.40891]
[1726795390811,3.589,2445.2,2445.0,0.40888]
[1726795391416,3.589,2445.2,2444.9,0.4089]
[1726795392420,3.589,2445.2,2444.7,0.8479]
[1726795392615,7.7089,2445.4,2444.7,0.8479]
[1726795392815,7.7089,2445.4,2445.2,0.40885]
[1726795393518,7.311,2445.4,2444.7,1.87026]
[1726795393722,4.0008,2445.6,2444.9,3.2078]
[1726795394021,4.0008,2445.6,2445.4,0.40881]
[1726795395431,3.19,2446.0,2445.8,0.40875]
[1726795395627,0.4047,2445.9,2445.8,0.40875]
[1726795401233,0.4047,2445.9,2445.7,0.40877]
[1726795401428,3.19,2445.8,2445.7,0.40877]
[1726795402926,0.4047,2445.9,2445.8,0.40876]
[1726795403624,3.19,2446.0,2445.9,0.40874]
[1726795403828,3.2078,2446.1,2446.0,0.40872]
[1726795404127,0.3998,2446.3,2446.2,0.40869]
[1726795406533,3.2078,2446.5,2445.9,0.8084]
[1726795407229,3.2078,2446.5,2446.3,0.40867]
[1726795407733,3.61644,2446.5,2446.3,0.40867]
[1726795408036,3.2078,2446.5,2446.3,0.40867]
[1726795409236,3.2078,2446.5,2446.4,0.40866]
[1726795410040,3.61644,2446.5,2446.1,0.416]
[1726795410225,3.19,2446.3,2446.2,0.40869]
[1726795411627,3.19,2446.3,2445.9,0.8084]
[1726795411827,3.19,2446.3,2446.2,0.40869]
[1726795414936,3.2078,2446.5,2445.9,0.8084]
[1726795415135,3.2078,2446.5,2446.4,0.40866]
[1726795416541,0.3998,2446.7,2446.6,0.40862]
[1726795417248,0.3998,2446.7,2446.5,0.40863]
[1726795418136,0.3998,2446.7,2446.6,0.40862]
[1726795418336,0.80841,2446.7,2446.5,0.40863]
[1726795418641,0.3998,2446.7,2446.5,0.40863]
[1726795419432,0.3998,2446.7,2446.6,0.40862]
[1726795423837,0.80841,2446.7,2446.5,0.40863]
[1726795424038,3.19,2446.6,2446.5,0.40863]
[1726795429742,1.02161,2446.5,2445.8,3.2078]
[1726795429945,3.19,2446.0,2445.8,3.2078]
[1726795430143,0.4188,2445.9,2445.8,0.40875]
[1726795430837,0.4188,2445.9,2445.7,0.40876]
[1726795431339,0.4188,2445.9,2445.6,0.40879]
[1726795431745,0.4188,2445.9,2445.7,0.40876]
[1726795432140,0.82754,2445.9,2445.6,0.40878]
[1726795432343,0.82754,2445.9,2445.7,0.40877]
[1726795433050,0.82754,2445.9,2445.6,0.40878]
[1726795433252,0.4188,2445.9,2445.7,0.40877]
[1726795436345,0.4188,2445.9,2445.8,0.40876]
[1726795439147,0.4188,2445.9,2445.7,0.40876]
[1726795439351,0.4188,2445.9,2445.5,1.2205]
[1726795439352,0.82755,2445.9,2445.6,0.40878]
[1726795439551,3.19,2445.7,2445.6,0.40878]
[1726795439748,3.19,2445.7,2445.5,0.8039]
[1726795440057,3.19,2445.6,2445.3,1.0655567]
[1726795440249,3.59883,2445.4,2445.1,1.4744167]
[1726795440546,3.19,2445.2,2445.0,0.83389]
[1726795440950,3.19,2445.2,2445.0,0.425]
[1726795441151,3.19,2445.2,2445.0,0.83388]
[1726795441951,0.40887,2445.1,2445.0,0.425]
[1726795442152,0.40887,2445.1,2444.8,0.40892]
[1726795442348,3.19,2445.0,2444.7,0.4111]
[1726795442551,3.19,2444.8,2444.7,0.4111]
[1726795443356,3.19,2444.8,2444.5,3.61677]
[1726795443750,3.19,2444.6,2444.5,3.2078]
[1726795444652,0.807,2444.7,2444.5,3.61677]
[1726795444849,0.4129,2444.7,2444.6,0.40896]
[1726795445855,0.4129,2444.7,2444.5,0.40897]
[1726795446254,0.4129,2444.7,2444.6,0.40896]
[1726795449259,0.82184,2444.7,2444.4,0.40898]
[1726795449449,3.5905,2444.6,2444.3,0.4111]
[1726795449651,0.4005,2444.6,2444.3,0.4111]
[1726795449862,0.4005,2444.6,2444.5,0.40897]
[1726795450159,0.4005,2444.6,2444.4,0.40898]
[1726795450458,0.4005,2444.6,2444.5,0.40897]
[1726795454262,0.4005,2444.6,2443.8,4.23053]
[1726795454263,3.5905,2444.6,2443.8,4.23053]
[1726795454462,3.19,2444.4,2444.2,0.40901]
[1726795454670,3.19,2444.4,2444.2,0.40902]
[1726795454959,3.59899,2444.4,2444.2,0.40902]
[1726795455164,3.19,2444.4,2444.2,0.40902]
[1726795455556,3.19,2444.4,2444.3,0.40901]
[1726795455759,0.4005,2444.6,2444.5,0.40897]
[1726795456767,0.4005,2444.6,2444.4,0.40898]
[1726795456961,3.5905,2444.6,2444.4,0.40898]
[1726795457967,3.5905,2444.6,2444.1,0.4264]
[1726795459068,3.599,2444.4,2444.0,0.3945]
[1726795459375,0.4005,2444.6,2444.0,0.3945]
[1726795459376,3.19,2444.2,2444.0,0.3945]
[1726795459568,0.3964,2444.1,2444.0,0.80354]
[1726795459860,0.409,2444.4,2444.2,0.40902]
[1726795459861,3.5864,2444.4,2444.2,0.40902]
[1726795460056,3.5864,2444.4,2444.3,0.40901]
[1726795460262,3.2078,2444.8,2444.1,7.42041]
[1726795460475,0.3964,2444.7,2444.6,0.40895]
[1726795463175,0.40896,2444.6,2444.1,3.2078]
[1726795463376,3.19,2444.5,2444.4,0.40898]
[1726795463577,3.5864,2444.7,2444.5,0.40897]
[1726795464071,3.99534,2444.7,2444.5,0.40897]
[1726795464474,3.5864,2444.7,2444.5,0.40897]
[1726795464671,3.5864,2444.7,2444.6,0.40896]
[1726795466271,3.2078,2444.8,2444.7,0.40894]
[1726795466578,3.2078,2444.8,2444.7,1.24404]
[1726795466778,3.2078,2444.8,2444.7,5.74224]
[1726795467775,7.2982,2444.8,2444.1,3.2078]
[1726795467970,6.80678,2444.5,2443.9,1.2197]
[1726795468163,6.3978,2444.5,2443.9,1.2197]
[1726795468368,6.80679,2444.5,2444.2,0.40902]
[1726795469073,6.3978,2444.5,2444.3,0.40901]
[1726795469581,6.3978,2444.5,2444.3,0.40899]
[1726795469878,6.3978,2444.5,2444.2,0.40901]
[1726795470373,6.3978,2444.5,2444.3,0.40901]
[1726795471575,6.3978,2444.5,2444.2,0.40901]
[1726795473875,6.3978,2444.5,2444.3,0.409]
[1726795474079,3.19,2444.5,2444.3,0.409]
[1726795480173,3.19,2444.5,2444.4,0.40899]
[1726795481586,3.19,2444.5,2444.3,0.409]
[1726795483575,3.19,2444.5,2444.4,0.40899]
[1726795484983,4.0331,2444.7,2444.5,0.40896]
[1726795485286,0.8431,2444.7,2444.6,0.40896]
[1726795485490,4.0331,2444.7,2444.5,0.40896]
[1726795485780,4.44205,2444.7,2444.4,0.40898]
[1726795487380,4.44205,2444.7,2444.3,0.3859]
[1726795487381,4.44205,2444.7,2444.5,0.40897]
[1726795488578,4.0331,2444.7,2444.4,0.40898]
[1726795488975,3.19,2444.5,2444.4,0.40898]
[1726795489186,6.80678,2444.5,2444.3,0.3859]
[1726795489387,4.0912,2444.4,2444.0,1.0655567]
[1726795489685,6.3978,2444.1,2443.7,1.0655567]
[1726795489879,3.59909,2443.8,2443.5,1.4746967]
[1726795490080,0.4243,2443.7,2443.5,1.4746967]
[1726795490786,0.4243,2443.7,2443.5,0.40914]
[1726795490983,3.59913,2443.6,2443.3,1.4540567]
[1726795491176,3.19,2443.4,2443.2,1.0655567]
[1726795491381,3.19,2443.4,2443.1,0.4092]
[1726795491788,3.19,2443.4,2443.1,1.4747567]
[1726795492183,3.19,2443.4,2443.1,1.0655567]
[1726795492385,3.19,2443.2,2443.0,0.4226]
[1726795492581,3.19,2443.2,2442.9,1.4747867]
[1726795493294,3.6129,2443.2,2442.9,1.4747867]
[1726795493497,3.6129,2443.2,2442.9,0.40923]
[1726795493791,3.6129,2443.2,2443.0,0.40922]
[1726795494090,3.6129,2443.2,2442.9,1.4747867]
[1726795494490,3.6129,2443.2,2442.9,0.40923]
[1726795494992,3.19,2443.2,2442.8,1.0655567]
[1726795495291,3.19,2443.3,2443.2,0.40919]
[1726795495496,3.5763,2443.5,2443.4,0.40916]
[1726795495797,3.5763,2443.5,2443.3,0.40916]
[1726795496687,0.4229,2443.6,2443.4,0.40916]
[1726795497098,3.19,2443.5,2443.4,0.40916]
[1726795500389,3.19,2443.5,2443.3,0.40916]
[1726795500992,3.19,2443.5,2442.8,3.2078]
[1726795500993,4.0928,2443.4,2442.8,3.2078]
[1726795501200,12.3978,2443.5,2442.6,1.4924567]
[1726795501201,3.19,2442.9,2442.6,1.4924567]
[1726795501384,3.19,2442.8,2442.6,0.4269]
[1726795501693,3.19,2442.7,2442.5,0.4093]
[1726795501880,3.19,2442.7,2442.3,1.253]
[1726795502083,3.19,2442.7,2442.5,0.40929]
[1726795502692,3.19,2442.7,2442.6,0.40929]
[1726795503095,3.19,2442.9,2442.3,1.253]
[1726795503294,3.19,2442.9,2442.8,0.40926]
[1726795503499,0.7885,2443.1,2442.4,14.77274529]
[1726795503689,0.7885,2443.1,2443.0,0.40923]
[1726795503888,3.19,2443.5,2442.7,3.61708]
[1726795504103,3.19,2443.5,2442.8,0.3956]
[1726795504396,3.19,2443.5,2443.2,0.40918]
[1726795504599,3.19,2443.3,2443.2,0.40918]
[1726795505088,3.59918,2443.3,2442.9,0.4105]
[1726795505395,3.19,2443.0,2442.8,0.80485]
[1726795505781,3.5774,2443.0,2442.8,0.80485]
[1726795506589,3.5774,2443.0,2442.9,0.40924]
[1726795507393,0.3874,2443.0,2442.9,0.40924]
[1726795507693,3.5954,2443.2,2443.1,0.40921]
[1726795508192,3.61687,2444.0,2443.1,10.0928]
[1726795508395,3.61687,2444.0,2443.2,7.5359]
[1726795508396,3.19,2443.9,2443.2,7.5359]
[1726795508593,3.19,2443.9,2443.8,0.40909]
[1726795508894,3.19,2443.9,2443.7,0.4091]
[1726795509103,3.19,2443.9,2443.8,0.40909]
[1726795510095,3.19,2443.9,2443.7,0.4091]
[1726795510895,3.19,2443.9,2443.4,0.4087]
[1726795510896,3.19,2443.9,2443.8,0.40909]
[1726795511401,3.19,2443.9,2443.7,0.4091]
[1726795511600,3.19,2443.9,2443.8,0.40909]
[1726795511796,3.2078,2444.0,2443.9,0.40907]
[1726795514299,3.2078,2444.0,2443.5,3.2078]
[1726795514491,3.19,2443.7,2443.6,0.40912]
[1726795514692,6.3978,2443.7,2443.2,0.7791]
[1726795514903,3.19,2443.5,2443.4,0.40916]
[1726795517102,3.19,2443.7,2443.2,0.7791]
[1726795517407,3.19,2443.7,2443.6,0.40912]
[1726795517904,4.03317,2444.0,2443.2,0.7791]
[1726795517905,3.19,2443.9,2443.2,0.7791]
[1726795518109,3.59908,2443.9,2443.6,0.40912]
[1726795518296,0.4091,2443.8,2443.5,0.40913]
[1726795518501,0.40909,2443.8,2443.5,0.40913]
[1726795518715,3.59911,2443.7,2443.4,0.40915]
[1726795518898,6.80691,2443.7,2443.4,0.40915]
[1726795519498,0.40913,2443.6,2443.3,0.40917]
[1726795519696,3.5872,2443.5,2442.9,0.8268]
[1726795519913,3.975,2443.5,2443.3,0.40917]
[1726795520705,4.38415,2443.5,2443.2,0.40918]
[1726795521305,3.975,2443.5,2442.9,1.2136]
[1726795521510,3.975,2443.5,2443.2,0.40919]
[1726795521809,3.975,2443.5,2443.3,0.40917]
[1726795522006,3.2078,2443.7,2443.1,6.3978]
[1726795522204,0.8144,2444.0,2443.2,1.02299]
[1726795522399,0.8144,2444.0,2443.4,1.0229]
[1726795522601,0.8144,2444.0,2443.8,0.40908]
[1726795523910,3.19,2443.9,2443.8,0.40908]
[1726795524112,3.19,2443.9,2443.7,0.4091]
[1726795524506,3.19,2443.9,2443.8,0.40909]
[1726795525207,3.19,2443.9,2443.7,0.4091]
[1726795525407,3.2078,2443.8,2443.7,0.4091]
[1726795527005,3.19,2443.9,2443.8,0.40909]
[1726795527211,0.8144,2444.0,2443.9,0.40907]
[1726795528212,3.61683,2444.2,2444.1,0.40904]
[1726795528213,3.2078,2444.2,2444.1,0.40904]
[1726795528411,3.19,2444.3,2444.2,0.40902]
[1726795529215,3.19,2444.3,2444.1,0.40903]
[1726795529521,3.19,2444.3,2444.2,0.40902]
[1726795529706,7.2429,2444.5,2443.8,1.4127]
[1726795530106,7.2429,2444.5,2444.3,0.40899]
[1726795530812,7.2429,2444.5,2443.8,1.4127]
[1726795531012,7.2429,2444.5,2444.4,0.40899]
[1726795534205,7.2429,2444.5,2444.3,0.409]
[1726795534406,7.2429,2444.5,2444.0,0.8003]
[1726795534612,3.19,2444.1,2444.0,0.40905]
[1726795535019,0.40906,2444.0,2443.6,1.0655567]
[1726795535214,3.19,2443.9,2443.8,0.40909]
[1726795536110,4.0197,2444.0,2443.9,0.40907]
[1726795536615,4.0197,2444.0,2443.8,0.40908]
[1726795537318,4.0197,2444.0,2443.9,0.40907]
[1726795539418,0.4263,2444.0,2443.9,0.40907]
[1726795541018,3.6163,2444.0,2443.9,0.40907]
[1726795541317,3.6163,2444.0,2443.8,0.40908]
[1726795541924,0.4099,2443.9,2443.8,0.40908]
[1726795545119,3.6163,2444.0,2443.9,0.40907]
[1726795545315,0.3942,2444.3,2443.6,5.1575567]
[1726795545617,3.99321,2444.3,2444.1,0.40903]
[1726795545814,3.5842,2444.3,2444.1,0.40903]
[1726795546019,3.5842,2444.3,2444.2,0.40902]
[1726795546524,3.5842,2444.3,2444.1,0.40903]
[1726795548125,3.5842,2444.3,2444.2,0.40902]
[1726795548312,3.19,2444.3,2444.2,0.40902]
[1726795550117,3.2078,2444.5,2444.4,0.40899]
[1726795553020,3.2078,2444.8,2444.4,5.11368]
[1726795553223,0.8098,2445.1,2444.5,6.9176953]
[1726795553421,0.8098,2445.1,2445.0,0.40889]
[1726795553923,0.8098,2445.1,2444.9,0.4089]
[1726795553924,3.9998,2445.1,2444.9,0.4089]
[1726795554423,3.9998,2445.1,2445.0,0.40889]
[1726795555027,3.19,2445.3,2444.7,3.2078]
[1726795555330,3.2078,2445.4,2445.2,0.40885]
[1726795555625,3.19,2445.3,2445.2,0.40885]
[1726795558434,3.19,2445.3,2445.1,0.40886]
[1726795558616,3.19,2445.3,2445.0,0.40888]
[1726795558817,3.59884,2445.3,2444.9,0.40889]
[1726795559124,3.59884,2445.3,2444.9,0.4089]
[1726795559424,3.59884,2445.3,2445.0,0.40888]
[1726795559425,3.19,2445.3,2445.0,0.40888]
[1726795559631,3.19,2445.3,2444.6,3.9554]
[1726795559816,3.19,2445.3,2445.0,0.40888]
[1726795562331,3.19,2445.3,2445.1,0.40887]
[1726795564028,3.2078,2445.4,2444.8,1.02232]
[1726795564229,3.2078,2445.4,2445.3,0.40884]
[1726795564432,6.80655,2445.9,2445.5,0.4088]
[1726795564631,6.80655,2445.9,2445.2,3.19]
[1726795564632,0.4246,2445.8,2445.6,0.40879]
[1726795565530,0.4246,2445.8,2445.4,0.4192]
[1726795565734,0.4246,2445.8,2445.7,0.40877]
[1726795566237,3.2078,2445.9,2445.8,0.40876]
[1726795566730,3.2078,2445.9,2445.7,0.40877]
[1726795567335,0.4077,2446.0,2445.7,0.40877]
[1726795568235,0.4077,2446.0,2445.9,0.40874]
[1726795568629,0.4077,2446.0,2445.6,3.19]
[1726795569241,0.4077,2446.0,2445.8,0.40875]
[1726795569539,0.4077,2446.0,2445.9,0.40874]
[1726795569747,0.4077,2446.0,2445.8,0.40875]
[1726795571437,0.4077,2446.0,2445.9,0.40874]
[1726795572139,3.2078,2446.2,2445.9,0.40874]
[1726795573345,3.61649,2446.2,2445.9,0.40874]
[1726795575045,3.2078,2446.2,2446.1,0.40871]
[1726795575543,3.2078,2446.2,2446.1,5.71591]
[1726795575937,4.121,2446.7,2446.1,14.90591]
[1726795576246,0.4257,2446.9,2446.4,3.19]
[1726795576431,0.4257,2446.9,2446.6,0.40862]
[1726795576836,3.19,2447.0,2446.9,0.40857]
[1726795577036,3.2078,2447.1,2446.7,0.4086]
[1726795577037,3.61635,2447.1,2446.7,0.4086]
[1726795577238,3.2078,2447.1,2446.8,0.40859]
[1726795577637,3.2078,2447.1,2446.6,0.83]
[1726795577842,3.2078,2447.1,2447.0,0.40856]
[1726795578042,0.8422,2447.2,2446.9,0.40857]
[1726795578844,0.8422,2447.2,2447.0,0.40856]
[1726795579051,0.8422,2447.2,2446.9,0.40857]
[1726795580648,0.8422,2447.2,2446.8,0.40858]
[1726795581039,0.8422,2447.2,2446.6,4.02]
[1726795581040,0.8422,2447.2,2446.9,0.40857]
[1726795581240,0.8422,2447.2,2447.1,0.40854]
[1726795581435,0.8422,2447.2,2446.8,3.19]
[1726795581436,3.2078,2447.5,2447.0,3.19]
[1726795581652,1.21325,2447.7,2447.3,0.4085]
[1726795582244,1.21325,2447.7,2447.4,0.40848]
[1726795582748,0.40846,2447.6,2447.2,0.40852]
[1726795582948,3.2078,2447.6,2447.2,0.40852]
[1726795583151,0.40847,2447.5,2447.2,0.40852]
[1726795583352,6.80627,2447.6,2447.2,0.40852]
[1726795583950,1.2192,2447.7,2447.5,0.40847]
[1726795584151,1.2192,2447.7,2447.1,0.4162]
[1726795584152,1.62764,2447.7,2447.4,0.40848]
[1726795585246,0.8048,2447.7,2447.2,3.5839]
[1726795585740,0.8048,2447.7,2447.6,0.40846]
[1726795585950,0.8048,2447.7,2447.5,0.40846]
[1726795586346,0.8048,2447.7,2447.6,0.40846]
[1726795587346,0.40847,2447.6,2447.1,4.0127]
[1726795587542,0.40847,2447.5,2447.2,0.40851]
[1726795587742,3.99537,2447.6,2447.3,0.4085]
[1726795587944,3.99537,2447.6,2447.2,0.40851]
[1726795589151,0.40848,2447.5,2447.1,0.82473]
[1726795589350,0.40848,2447.5,2447.2,0.40852]
[1726795590848,3.99537,2447.6,2447.2,0.40852]
[1726795591251,0.40847,2447.5,2447.2,0.40852]
[1726795592356,0.40847,2447.5,2447.0,0.40855]
[1726795592357,0.40851,2447.3,2447.0,0.40855]
[1726795592655,0.8233,2447.2,2447.1,0.40854]
[1726795593356,0.40855,2447.1,2446.8,0.40858]
[1726795593657,0.40855,2447.1,2446.8,0.40859]
[1726795593954,7.2211,2447.2,2447.1,0.40854]
[1726795593955,0.8233,2447.2,2447.1,0.40854]
[1726795594559,0.4211,2447.2,2447.1,0.40854]
[1726795594956,0.4211,2447.2,2447.0,1.24545]
[1726795595657,0.4211,2447.2,2447.1,0.40854]
[1726795595958,0.4211,2447.2,2447.0,1.24545]
[1726795596957,0.4211,2447.2,2447.0,0.4099]
[1726795597159,3.2078,2447.1,2447.0,0.4099]
[1726795597350,3.6315,2447.1,2447.0,0.4099]
[1726795599051,10.9079,2447.1,2446.5,3.2078]
[1726795599257,3.2078,2446.7,2446.3,1.22087]
[1726795599459,0.4,2446.6,2446.3,0.8122]
[1726795599757,3.2078,2446.7,2446.6,0.40862]
[1726795600157,3.2078,2446.7,2446.3,4.0022]
[1726795600158,3.2078,2446.7,2446.5,0.40863]
[1726795601160,3.2078,2446.7,2446.3,1.22087]
[1726795601460,0.40865,2446.5,2446.1,0.4087]
[1726795601661,3.6078,2446.4,2446.1,0.4087]
[1726795602160,3.6078,2446.4,2446.2,0.40868]
[1726795602355,3.6078,2446.4,2446.1,0.4087]
[1726795605959,3.6078,2446.4,2446.2,0.40869]
[1726795606161,3.2078,2446.4,2446.1,3.19]
[1726795606465,3.2078,2446.4,2446.3,0.40867]
[1726795606659,3.2078,2446.4,2446.3,4.49667]
[1726795607262,0.3901,2446.7,2446.6,0.40862]
[1726795608958,0.3901,2446.7,2446.4,0.8042]
[1726795609153,3.2078,2446.6,2446.3,0.40867]
[1726795609353,3.61643,2446.6,2446.2,0.82748]
[1726795610166,3.61643,2446.6,2446.3,0.40867]
[1726795610364,3.2078,2446.6,2446.4,0.40864]
[1726795610564,3.2078,2446.6,2446.2,3.6088]
[1726795610755,3.2078,2446.6,2446.5,0.40864]
[1726795611158,3.2078,2446.6,2446.5,4.49584]
[1726795611962,3.2078,2446.6,2446.5,4.89484]
[1726795612468,3.2078,2446.6,2446.5,0.80764]
[1726795613269,3.2078,2446.6,2446.4,0.40864]
[1726795613471,3.2078,2446.6,2446.3,0.4235]
[1726795613674,3.61643,2446.6,2446.2,3.2078]
[1726795613859,3.2078,2446.6,2446.1,4.4098]
[1726795614368,0.4086,2446.8,2446.4,0.40865]
[1726795614568,0.40861,2446.7,2446.4,0.40865]
[1726795615061,0.4086,2446.8,2446.4,0.40865]
[1726795615675,0.40861,2446.7,2446.4,0.40865]
[1726795615970,0.40864,2446.6,2446.3,0.40867]
[1726795616168,0.40864,2446.6,2446.1,1.6285]
[1726795616169,0.40867,2446.4,2446.1,1.6285]
[1726795616370,0.82398,2446.3,2446.0,0.40871]
[1726795616666,6.8131,2446.3,2445.8,0.4218]
[1726795616857,0.40871,2446.1,2445.4,1.0655567]
[1726795617064,3.61652,2446.0,2445.6,0.40878]
[1726795617257,7.19682,2446.0,2445.4,0.8262]
[1726795617467,7.19682,2446.0,2445.7,0.40877]
[1726795617665,3.5981,2446.0,2445.7,0.40877]
[1726795619065,3.5981,2446.0,2445.8,0.40875]
[1726795619269,3.5981,2446.0,2445.5,3.19]
[1726795619270,3.2078,2446.0,2445.5,3.19]
[1726795619471,3.2078,2446.0,2445.8,0.40875]
[1726795620562,3.2078,2446.0,2445.5,7.4633567]
[1726795620775,3.2078,2446.0,2445.8,0.40874]
[1726795620977,3.2078,2446.0,2445.9,0.40874]
[1726795621568,3.2078,2446.0,2445.9,4.49674]
[1726795622276,0.4153,2446.3,2446.2,0.40869]
[1726795623482,0.4153,2446.3,2446.1,0.4087]
[1726795623790,0.4153,2446.3,2446.0,4.02261]
[1726795624172,0.4153,2446.3,2446.0,0.83261]
[1726795624477,0.4153,2446.3,2445.9,0.40873]
[1726795624686,0.8088,2446.3,2445.9,0.40873]
[1726795624981,1.21748,2446.3,2445.8,0.40875]
[1726795625781,1.21748,2446.3,2445.9,0.40874]
[1726795625991,0.8088,2446.3,2446.0,0.40872]
[1726795626283,0.4153,2446.3,2445.8,3.19]
[1726795626479,0.4153,2446.3,2446.1,0.40869]
[1726795627077,0.4153,2446.3,2445.7,4.0378]
[1726795627277,0.4153,2446.3,2446.0,0.40872]
[1726795627479,0.4153,2446.3,2446.2,0.40869]
[1726795627887,0.4153,2446.3,2446.1,0.4087]
[1726795630989,0.4153,2446.3,2446.2,0.40869]
[1726795631484,3.2078,2446.4,2446.3,0.40867]
[1726795631684,0.4188,2446.6,2446.3,0.40867]
[1726795633888,0.4188,2446.6,2446.2,0.40868]
[1726795634186,0.40865,2446.5,2446.2,0.40868]
[1726795634487,3.61644,2446.5,2446.2,0.40868]
[1726795635484,6.3978,2446.5,2445.9,1.4776567]
[1726795635685,0.40868,2446.3,2445.8,1.0655567]
[1726795635980,6.3978,2446.2,2445.8,1.0655567]
[1726795636185,6.3978,2446.2,2445.7,0.40877]
[1726795636186,0.40873,2446.0,2445.7,0.40877]
[1726795636389,0.808,2446.1,2445.7,0.40877]
[1726795636688,0.808,2446.1,2445.5,1.0655567]
[1726795636891,0.808,2446.1,2446.0,0.40872]
[1726795637280,0.40866,2446.4,2445.9,0.7952]
[1726795637281,0.4056,2446.4,2445.9,0.7952]
[1726795637783,0.4056,2446.4,2446.2,0.40867]
[1726795638496,0.4056,2446.4,2446.0,0.4095]
[1726795638497,0.81426,2446.4,2446.0,0.81821]
[1726795638689,0.40868,2446.3,2446.0,0.81821]
[1726795638995,0.4087,2446.2,2445.9,0.40874]
[1726795640892,0.40868,2446.3,2446.0,0.40872]
[1726795641290,0.40869,2446.2,2446.0,0.40872]
[1726795642300,0.40869,2446.2,2445.9,0.40873]
[1726795642493,0.40868,2446.3,2446.0,0.40871]
[1726795642688,0.81426,2446.4,2446.1,0.4087]
[1726795642894,0.4056,2446.4,2446.1,0.4087]
[1726795643095,0.4056,2446.4,2446.2,0.40868]
[1726795643593,0.81426,2446.4,2446.1,0.4087]
[1726795643999,0.4056,2446.4,2446.3,0.40867]
[1726795644194,3.6102,2446.5,2446.1,3.19]
[1726795644507,3.6102,2446.5,2446.3,0.40866]
[1726795644693,3.6102,2446.5,2446.2,0.3997]
[1726795644694,3.6102,2446.5,2446.4,0.40866]
[1726795645311,0.4024,2446.5,2446.4,0.40866]
[1726795645498,3.605,2446.8,2446.4,3.19]
[1726795645799,0.3972,2446.8,2446.7,3.59861]
[1726795645990,4.121,2447.0,2446.8,0.40858]
[1726795646185,0.8091,2447.1,2446.8,0.40858]
[1726795647199,0.40848,2447.5,2447.1,0.40853]
[1726795647401,0.80478,2447.5,2447.1,0.40853]
[1726795647900,0.3963,2447.5,2447.1,3.59853]
[1726795648606,0.80478,2447.5,2447.1,3.59853]
[1726795648798,0.3963,2447.5,2447.1,3.19]
[1726795649111,0.3963,2447.5,2447.3,3.19]
[1726795649404,0.4119,2447.7,2447.5,0.40847]